[Event "*** Titled Tuesday Blitz"]
[Site "Chess.com"]
[Date "2020.04.21"]
[Round "2"]
[White "RoelandPruijssers"]
[Black "Oleksandr_Bortnyk"]
[Result "0-1"]
[WhiteElo "2610"]
[BlackElo "3028"]
[TimeControl "180+1"]
[EndTime "10:15:01 PDT"]
[Termination "Oleksandr_Bortnyk won by resignation"]

1. e4 {[%clk 0:03:00.9]} 1... Nf6 {[%clk 0:02:54.9]} 2. e5 {[%clk 0:03:00.7]}
2... Nd5 {[%clk 0:02:54.9]} 3. c4 {[%clk 0:03:01.4]} 3... Nb6 {[%clk 0:02:54.9]}
4. d4 {[%clk 0:03:02.1]} 4... d6 {[%clk 0:02:55.1]} 5. exd6 {[%clk 0:03:03]}
5... exd6 {[%clk 0:02:56]} 6. Nc3 {[%clk 0:03:03]} 6... Be7 {[%clk 0:02:56.5]}
7. Be3 {[%clk 0:03:03.1]} 7... O-O {[%clk 0:02:57.1]} 8. Be2 {[%clk 0:03:02.7]}
8... Nc6 {[%clk 0:02:57.3]} 9. d5 {[%clk 0:02:54.6]} 9... Ne5 {[%clk 0:02:57.2]}
10. b3 {[%clk 0:02:54.7]} 10... Bf6 {[%clk 0:02:57.1]} 11. Rc1 {[%clk
0:02:53.1]} 11... Re8 {[%clk 0:02:57.7]} 12. h3 {[%clk 0:02:36]} 12... Bg5
{[%clk 0:02:45]} 13. f4 {[%clk 0:02:11]} 13... Bh6 {[%clk 0:02:07.7]} 14. Bxb6
{[%clk 0:01:53.2]} 14... axb6 {[%clk 0:02:02.8]} 15. fxe5 {[%clk 0:01:53.3]}
15... Qh4+ {[%clk 0:02:02.2]} 16. Kf1 {[%clk 0:01:43.6]} 16... Qf4+ {[%clk
0:01:47.1]} 17. Nf3 {[%clk 0:01:42.8]} 17... Qxc1 {[%clk 0:01:48]} 18. Qxc1
{[%clk 0:01:43.4]} 18... Bxc1 {[%clk 0:01:48.5]} 19. Kf2 {[%clk 0:01:44.1]}
19... Ba3 {[%clk 0:01:37.2]} 20. Nb5 {[%clk 0:01:31.4]} 20... Bc5+ {[%clk
0:01:35.1]} 21. Kg3 {[%clk 0:01:31.8]} 21... Rxa2 {[%clk 0:01:33.8]} 22. Bd3
{[%clk 0:01:32.1]} 22... dxe5 {[%clk 0:01:29.8]} 23. Nxc7 {[%clk 0:01:31.5]}
23... Re7 {[%clk 0:01:30]} 24. Nb5 {[%clk 0:01:27.3]} 24... e4 {[%clk
0:01:30.1]} 25. d6 {[%clk 0:01:27.7]} 25... Re6 {[%clk 0:01:11.7]} 26. Bxe4
{[%clk 0:01:24.9]} 26... Rxe4 {[%clk 0:01:10.3]} 27. Nc3 {[%clk 0:01:25.5]}
27... Bxd6+ {[%clk 0:01:10.8]} 28. Ne5 {[%clk 0:01:23.9]} 28... Bxe5+ {[%clk
0:01:08.8]} 0-1

[Event "*** Titled Tuesday Blitz"]
[Site "Chess.com"]
[Date "2020.04.21"]
[Round "2"]
[White "Saxar85"]
[Black "MITerryble"]
[Result "0-1"]
[WhiteElo "2582"]
[BlackElo "2860"]
[TimeControl "180+1"]
[EndTime "10:15:10 PDT"]
[Termination "MITerryble won by resignation"]

1. Nf3 {[%clk 0:02:56.6]} 1... Nf6 {[%clk 0:02:59.9]} 2. g3 {[%clk 0:02:55.5]}
2... d5 {[%clk 0:02:59.9]} 3. Bg2 {[%clk 0:02:55.5]} 3... c6 {[%clk 0:03:00.5]}
4. O-O {[%clk 0:02:54.8]} 4... Bg4 {[%clk 0:03:01]} 5. d3 {[%clk 0:02:54.1]}
5... Nbd7 {[%clk 0:03:00.9]} 6. Nbd2 {[%clk 0:02:52.8]} 6... e5 {[%clk
0:03:01.5]} 7. e4 {[%clk 0:02:52.5]} 7... dxe4 {[%clk 0:03:02.4]} 8. dxe4 {[%clk
0:02:52.6]} 8... Be7 {[%clk 0:03:02.7]} 9. h3 {[%clk 0:02:52]} 9... Bh5 {[%clk
0:03:02.7]} 10. Qe2 {[%clk 0:02:51.3]} 10... O-O {[%clk 0:03:02.5]} 11. b3
{[%clk 0:02:51.5]} 11... Re8 {[%clk 0:03:01.1]} 12. Bb2 {[%clk 0:02:51.2]} 12...
Qc7 {[%clk 0:03:01.6]} 13. Nc4 {[%clk 0:02:46]} 13... b5 {[%clk 0:02:55.1]} 14.
Ncd2 {[%clk 0:02:32.7]} 14... Bf8 {[%clk 0:02:51]} 15. a4 {[%clk 0:02:28.1]}
15... a6 {[%clk 0:02:50.5]} 16. g4 {[%clk 0:02:27.7]} 16... Bg6 {[%clk
0:02:50.1]} 17. Nh4 {[%clk 0:02:27.7]} 17... Nc5 {[%clk 0:02:50.4]} 18. axb5
{[%clk 0:02:01.3]} 18... axb5 {[%clk 0:02:50.2]} 19. Rxa8 {[%clk 0:01:57.9]}
19... Rxa8 {[%clk 0:02:51.1]} 20. f4 {[%clk 0:01:51.3]} 20... exf4 {[%clk
0:02:44]} 21. e5 {[%clk 0:01:35]} 21... Nd5 {[%clk 0:02:17.5]} 22. Nxg6 {[%clk
0:01:29.3]} 22... hxg6 {[%clk 0:02:18.4]} 23. Bxd5 {[%clk 0:01:24]} 23... cxd5
{[%clk 0:02:19.3]} 24. Qxb5 {[%clk 0:01:22.5]} 24... Ne6 {[%clk 0:02:19.6]} 25.
Qd3 {[%clk 0:01:15]} 25... Ra2 {[%clk 0:02:16.5]} 26. Rb1 {[%clk 0:01:10]} 26...
f3 {[%clk 0:01:51.3]} 27. Qxd5 {[%clk 0:01:02.5]} 27... Qxc2 {[%clk 0:01:50.6]}
0-1

[Event "*** Titled Tuesday Blitz"]
[Site "Chess.com"]
[Date "2020.04.21"]
[Round "2"]
[White "gvanna"]
[Black "1977Ivan"]
[Result "0-1"]
[WhiteElo "2448"]
[BlackElo "2680"]
[TimeControl "180+1"]
[EndTime "10:15:11 PDT"]
[Termination "1977Ivan won by resignation"]

1. e4 {[%clk 0:03:00.9]} 1... c5 {[%clk 0:02:51]} 2. Nf3 {[%clk 0:02:59.7]} 2...
e6 {[%clk 0:02:50.1]} 3. d4 {[%clk 0:02:59]} 3... cxd4 {[%clk 0:02:50.2]} 4.
Nxd4 {[%clk 0:02:59.7]} 4... Nc6 {[%clk 0:02:50.6]} 5. Nxc6 {[%clk 0:02:59.6]}
5... bxc6 {[%clk 0:02:50]} 6. Bd3 {[%clk 0:02:59.7]} 6... d5 {[%clk 0:02:50.4]}
7. O-O {[%clk 0:02:59.3]} 7... Bd6 {[%clk 0:02:50.9]} 8. Nd2 {[%clk 0:02:58.8]}
8... Ne7 {[%clk 0:02:50.5]} 9. c4 {[%clk 0:02:55.9]} 9... O-O {[%clk 0:02:47]}
10. Qe2 {[%clk 0:02:54.5]} 10... Qc7 {[%clk 0:02:45.2]} 11. h3 {[%clk
0:02:53.9]} 11... Bb7 {[%clk 0:02:41.2]} 12. Re1 {[%clk 0:02:53.1]} 12... Ng6
{[%clk 0:02:39.9]} 13. Nf3 {[%clk 0:02:46.2]} 13... dxe4 {[%clk 0:02:31.1]} 14.
Bxe4 {[%clk 0:02:43.9]} 14... f5 {[%clk 0:02:30]} 15. Bc2 {[%clk 0:02:35.4]}
15... Rae8 {[%clk 0:02:28.9]} 16. Bd2 {[%clk 0:02:17.5]} 16... c5 {[%clk
0:02:16.3]} 17. Rad1 {[%clk 0:02:13.9]} 17... e5 {[%clk 0:01:58.7]} 18. Ba4
{[%clk 0:01:59.9]} 18... Re6 {[%clk 0:01:47.2]} 19. Ng5 {[%clk 0:01:44.8]} 19...
Ref6 {[%clk 0:01:46.8]} 20. Bc1 {[%clk 0:01:17.9]} 20... h6 {[%clk 0:01:44.5]}
21. Nf3 {[%clk 0:01:12.9]} 21... e4 {[%clk 0:01:44.6]} 22. Nd2 {[%clk
0:01:02.9]} 22... Nf4 {[%clk 0:01:44.1]} 23. Qe3 {[%clk 0:00:53.5]} 23... Rg6
{[%clk 0:01:41.4]} 24. g3 {[%clk 0:00:48.5]} 24... Nxh3+ {[%clk 0:01:41]} 25.
Kh2 {[%clk 0:00:48.9]} 25... Nxf2 {[%clk 0:01:39.6]} 26. Nf1 {[%clk 0:00:46.2]}
26... Ng4+ {[%clk 0:01:38.6]} 0-1

[Event "*** Titled Tuesday Blitz"]
[Site "Chess.com"]
[Date "2020.04.21"]
[Round "2"]
[White "Indianlad"]
[Black "ChessicallyInclined"]
[Result "1-0"]
[WhiteElo "2994"]
[BlackElo "2605"]
[TimeControl "180+1"]
[EndTime "10:15:15 PDT"]
[Termination "Indianlad won by resignation"]

1. Nf3 {[%clk 0:03:00.9]} 1... Nf6 {[%clk 0:02:59.9]} 2. c4 {[%clk 0:03:01.2]}
2... b6 {[%clk 0:02:58.8]} 3. Nc3 {[%clk 0:03:01.4]} 3... Bb7 {[%clk 0:02:59]}
4. d4 {[%clk 0:03:01.4]} 4... e6 {[%clk 0:02:59.3]} 5. Bg5 {[%clk 0:03:00.7]}
5... h6 {[%clk 0:02:57.4]} 6. Bh4 {[%clk 0:02:59.9]} 6... d5 {[%clk 0:02:53.6]}
7. cxd5 {[%clk 0:02:58.7]} 7... exd5 {[%clk 0:02:54.5]} 8. Bxf6 {[%clk
0:02:52.7]} 8... Qxf6 {[%clk 0:02:53.3]} 9. Qb3 {[%clk 0:02:53.4]} 9... c6
{[%clk 0:02:50.8]} 10. e4 {[%clk 0:02:53.6]} 10... dxe4 {[%clk 0:02:46.1]} 11.
Nxe4 {[%clk 0:02:54.3]} 11... Qe7 {[%clk 0:02:21.4]} 12. O-O-O {[%clk
0:02:52.6]} 12... Nd7 {[%clk 0:02:07.2]} 13. Bc4 {[%clk 0:02:45.1]} 13... O-O-O
{[%clk 0:01:57.4]} 14. Rhe1 {[%clk 0:02:45.5]} 14... f5 {[%clk 0:01:49.7]} 15.
Neg5 {[%clk 0:02:40.1]} 15... hxg5 {[%clk 0:01:32.8]} 16. Rxe7 {[%clk
0:02:39.2]} 16... Bxe7 {[%clk 0:01:33.7]} 17. Be6 {[%clk 0:02:38.2]} 17... Kc7
{[%clk 0:01:27.2]} 18. Bxf5 {[%clk 0:02:38]} 18... Rhf8 {[%clk 0:01:22.1]} 19.
Bxd7 {[%clk 0:02:30.2]} 19... Rxd7 {[%clk 0:01:21.8]} 20. h3 {[%clk 0:02:30.9]}
20... Rd5 {[%clk 0:01:19.1]} 21. a3 {[%clk 0:02:25.8]} 21... Bf6 {[%clk
0:01:18.9]} 22. Re1 {[%clk 0:02:25.4]} 22... a6 {[%clk 0:00:56.1]} 23. Kb1
{[%clk 0:02:25.1]} 23... Bc8 {[%clk 0:00:50.6]} 24. Rc1 {[%clk 0:02:23.2]} 24...
Bf5+ {[%clk 0:00:50.4]} 25. Ka1 {[%clk 0:02:23.3]} 25... Rfd8 {[%clk 0:00:48.8]}
26. Qc4 {[%clk 0:02:21.4]} 26... R8d6 {[%clk 0:00:40.3]} 27. Qxa6 {[%clk
0:02:21.5]} 27... Ra5 {[%clk 0:00:40.3]} 28. Qe2 {[%clk 0:02:22.2]} 28... Be6
{[%clk 0:00:39.6]} 29. Ne5 {[%clk 0:02:15.4]} 29... Rxd4 {[%clk 0:00:32.8]} 30.
Rxc6+ {[%clk 0:02:11.4]} 30... Kb7 {[%clk 0:00:31.8]} 31. Rxe6 {[%clk
0:02:11.5]} 31... Rdd5 {[%clk 0:00:26.2]} 32. Nc4 {[%clk 0:02:09]} 1-0

[Event "*** Titled Tuesday Blitz"]
[Site "Chess.com"]
[Date "2020.04.21"]
[Round "2"]
[White "TudorAnton"]
[Black "Zkid"]
[Result "0-1"]
[WhiteElo "2551"]
[BlackElo "2802"]
[TimeControl "180+1"]
[EndTime "10:15:16 PDT"]
[Termination "Zkid won by resignation"]

1. d4 {[%clk 0:03:00.9]} 1... d5 {[%clk 0:02:58.1]} 2. Nf3 {[%clk 0:03:00.3]}
2... Nf6 {[%clk 0:02:58]} 3. c4 {[%clk 0:03:00.7]} 3... dxc4 {[%clk 0:02:58.9]}
4. Nc3 {[%clk 0:03:00.7]} 4... a6 {[%clk 0:02:58.5]} 5. e4 {[%clk 0:02:59.9]}
5... b5 {[%clk 0:02:58.6]} 6. e5 {[%clk 0:03:00.5]} 6... Nd5 {[%clk 0:02:58.4]}
7. a4 {[%clk 0:03:00.1]} 7... Nxc3 {[%clk 0:02:58.1]} 8. bxc3 {[%clk 0:03:00]}
8... Bb7 {[%clk 0:02:58.6]} 9. Be2 {[%clk 0:03:00.4]} 9... e6 {[%clk 0:02:58.2]}
10. O-O {[%clk 0:03:00.7]} 10... Be7 {[%clk 0:02:57.4]} 11. Nd2 {[%clk
0:02:58.2]} 11... Nd7 {[%clk 0:02:53.2]} 12. Bf3 {[%clk 0:02:58.5]} 12... Bxf3
{[%clk 0:02:44.6]} 13. Qxf3 {[%clk 0:02:59.4]} 13... O-O {[%clk 0:02:43.7]} 14.
Ne4 {[%clk 0:02:58.1]} 14... Nb6 {[%clk 0:02:39.4]} 15. a5 {[%clk 0:02:47.4]}
15... Nd5 {[%clk 0:02:38.9]} 16. g3 {[%clk 0:02:47.1]} 16... b4 {[%clk
0:02:27.9]} 17. cxb4 {[%clk 0:02:47]} 17... Nxb4 {[%clk 0:02:28.1]} 18. Bb2
{[%clk 0:02:42.9]} 18... Nd3 {[%clk 0:02:20.4]} 19. Bc3 {[%clk 0:02:40.1]} 19...
Qd5 {[%clk 0:02:19.4]} 20. Kg2 {[%clk 0:02:38]} 20... Rab8 {[%clk 0:02:17.7]}
21. Nd2 {[%clk 0:02:35.8]} 21... c6 {[%clk 0:02:11.6]} 22. Ra4 {[%clk
0:02:33.6]} 22... Bb4 {[%clk 0:02:07.9]} 23. Bxb4 {[%clk 0:02:25.9]} 23... Rxb4
{[%clk 0:02:03]} 24. Rxb4 {[%clk 0:02:26.3]} 24... Nxb4 {[%clk 0:02:03.9]} 25.
Rc1 {[%clk 0:02:24.9]} 25... Nd3 {[%clk 0:02:04]} 26. Rb1 {[%clk 0:02:20.6]}
26... c3 {[%clk 0:01:59.2]} 27. Ne4 {[%clk 0:02:17.4]} 27... c2 {[%clk
0:01:53.7]} 28. Qxd3 {[%clk 0:02:17]} 28... cxb1=Q {[%clk 0:01:53.2]} 29. Qxb1
{[%clk 0:02:17.9]} 29... Qxd4 {[%clk 0:01:53.4]} 30. Ng5 {[%clk 0:02:08.3]}
30... Qd5+ {[%clk 0:01:47.7]} 31. Kh3 {[%clk 0:02:02.4]} 31... g6 {[%clk
0:01:45.7]} 32. f4 {[%clk 0:02:02.6]} 32... Qxa5 {[%clk 0:01:44.4]} 33. Ne4
{[%clk 0:02:02.6]} 33... Qb5 {[%clk 0:01:41]} 34. Qd1 {[%clk 0:01:58.7]} 34...
Kg7 {[%clk 0:01:39]} 35. Qd7 {[%clk 0:01:52.8]} 35... Qf1+ {[%clk 0:01:36.3]}
36. Kh4 {[%clk 0:01:52.2]} 36... h6 {[%clk 0:01:18]} 37. Nc5 {[%clk 0:01:36.5]}
37... g5+ {[%clk 0:01:15.5]} 38. fxg5 {[%clk 0:01:28.6]} 38... hxg5+ {[%clk
0:01:14.5]} 39. Kxg5 {[%clk 0:01:28.6]} 39... Qf5+ {[%clk 0:01:14.3]} 0-1

[Event "*** Titled Tuesday Blitz"]
[Site "Chess.com"]
[Date "2020.04.21"]
[Round "2"]
[White "Sharpchess22"]
[Black "MFguimaraes"]
[Result "1-0"]
[WhiteElo "2749"]
[BlackElo "2406"]
[TimeControl "180+1"]
[EndTime "10:15:18 PDT"]
[Termination "Sharpchess22 won by resignation"]

1. d4 {[%clk 0:03:00.9]} 1... Nf6 {[%clk 0:02:59.1]} 2. c4 {[%clk 0:03:00.7]}
2... c6 {[%clk 0:02:58.1]} 3. Nc3 {[%clk 0:02:59.8]} 3... d5 {[%clk 0:02:58.3]}
4. Nf3 {[%clk 0:02:59.8]} 4... a6 {[%clk 0:02:56.9]} 5. c5 {[%clk 0:02:53.9]}
5... Nbd7 {[%clk 0:02:55]} 6. g3 {[%clk 0:02:51.8]} 6... g6 {[%clk 0:02:46]} 7.
Bf4 {[%clk 0:02:50.9]} 7... Bg7 {[%clk 0:02:30.8]} 8. Bg2 {[%clk 0:02:50.5]}
8... O-O {[%clk 0:02:26.8]} 9. O-O {[%clk 0:02:50.3]} 9... Nh5 {[%clk
0:02:19.9]} 10. Bg5 {[%clk 0:02:49.9]} 10... h6 {[%clk 0:02:05.2]} 11. Bd2
{[%clk 0:02:49.7]} 11... Nhf6 {[%clk 0:01:58.5]} 12. Qc2 {[%clk 0:02:41.7]}
12... Kh7 {[%clk 0:01:48.3]} 13. Rfe1 {[%clk 0:02:38.7]} 13... e5 {[%clk
0:01:35.2]} 14. Nxe5 {[%clk 0:02:27.8]} 14... Nxe5 {[%clk 0:01:33.7]} 15. dxe5
{[%clk 0:02:28.7]} 15... Ng4 {[%clk 0:01:33.7]} 16. f4 {[%clk 0:02:29]} 16... h5
{[%clk 0:01:15.6]} 17. e4 {[%clk 0:02:22.5]} 17... d4 {[%clk 0:01:12.7]} 18. Na4
{[%clk 0:02:22.3]} 18... h4 {[%clk 0:01:12.6]} 19. Nb6 {[%clk 0:02:17.7]} 19...
Rb8 {[%clk 0:01:05.4]} 20. Rad1 {[%clk 0:02:09.9]} 20... hxg3 {[%clk 0:01:00.6]}
21. hxg3 {[%clk 0:02:10.8]} 21... Qe7 {[%clk 0:00:53.2]} 22. Bc1 {[%clk
0:02:10.3]} 22... f6 {[%clk 0:00:13.8]} 23. Nxc8 {[%clk 0:02:06.9]} 23... Rbxc8
{[%clk 0:00:13.2]} 24. Bh3 {[%clk 0:02:07.4]} 24... f5 {[%clk 0:00:11.3]} 25.
exf5 {[%clk 0:02:04.9]} 1-0

[Event "*** Titled Tuesday Blitz"]
[Site "Chess.com"]
[Date "2020.04.21"]
[Round "2"]
[White "I_Hit_18K_on_BS"]
[Black "AlhosaniOmran1"]
[Result "1-0"]
[WhiteElo "2128"]
[BlackElo "2363"]
[TimeControl "180+1"]
[EndTime "10:15:18 PDT"]
[Termination "I_Hit_18K_on_BS won by checkmate"]

1. e4 {[%clk 0:03:00.9]} 1... e5 {[%clk 0:02:59.3]} 2. Nf3 {[%clk 0:03:00.8]}
2... Nc6 {[%clk 0:02:59.6]} 3. Bb5 {[%clk 0:03:01.2]} 3... a6 {[%clk 0:02:59.6]}
4. Ba4 {[%clk 0:03:00.9]} 4... Nf6 {[%clk 0:02:59.9]} 5. O-O {[%clk 0:03:00.3]}
5... Be7 {[%clk 0:02:59.3]} 6. d4 {[%clk 0:02:54.9]} 6... exd4 {[%clk
0:02:56.7]} 7. e5 {[%clk 0:02:52.9]} 7... Nd5 {[%clk 0:02:55.6]} 8. Bb3 {[%clk
0:02:48.5]} 8... Nb6 {[%clk 0:02:51.4]} 9. Nxd4 {[%clk 0:02:41.8]} 9... Nxd4
{[%clk 0:02:46.8]} 10. Qxd4 {[%clk 0:02:42.7]} 10... O-O {[%clk 0:02:47.7]} 11.
c3 {[%clk 0:02:27.8]} 11... d6 {[%clk 0:02:47.7]} 12. exd6 {[%clk 0:02:21.6]}
12... Bxd6 {[%clk 0:02:47.6]} 13. Bc2 {[%clk 0:02:19.5]} 13... f5 {[%clk
0:02:29.8]} 14. a4 {[%clk 0:02:16.6]} 14... Qf6 {[%clk 0:02:27.1]} 15. Qxf6
{[%clk 0:02:09.9]} 15... Rxf6 {[%clk 0:02:26.9]} 16. a5 {[%clk 0:02:09.9]} 16...
Nd5 {[%clk 0:02:21]} 17. Bb3 {[%clk 0:02:09.8]} 17... c6 {[%clk 0:02:15.9]} 18.
c4 {[%clk 0:01:56.2]} 18... Rh6 {[%clk 0:02:15.7]} 19. g3 {[%clk 0:01:53.2]}
19... f4 {[%clk 0:01:41.9]} 20. cxd5 {[%clk 0:01:49.5]} 20... c5 {[%clk
0:01:41.8]} 21. Nc3 {[%clk 0:01:31.6]} 21... Bf5 {[%clk 0:01:38.5]} 22. Re1
{[%clk 0:01:19.6]} 22... Rf8 {[%clk 0:01:38]} 23. Ne4 {[%clk 0:01:18.1]} 23...
Bxe4 {[%clk 0:01:33.5]} 24. Rxe4 {[%clk 0:01:19]} 24... Rh5 {[%clk 0:01:31.6]}
25. Bxf4 {[%clk 0:01:14.7]} 25... Bxf4 {[%clk 0:01:30.9]} 26. Rxf4 {[%clk
0:01:15.6]} 26... Rxf4 {[%clk 0:01:30.9]} 27. gxf4 {[%clk 0:01:16.5]} 27... Kf8
{[%clk 0:01:30.8]} 28. Re1 {[%clk 0:01:14.1]} 28... Rf5 {[%clk 0:01:30.2]} 29.
d6 {[%clk 0:01:09.8]} 29... Rxf4 {[%clk 0:01:30.4]} 30. d7 {[%clk 0:01:08]}
30... Rg4+ {[%clk 0:01:29.8]} 31. Kh1 {[%clk 0:01:07]} 31... Rd4 {[%clk
0:01:29.7]} 32. Re8# {[%clk 0:01:07.3]} 1-0

[Event "*** Titled Tuesday Blitz"]
[Site "Chess.com"]
[Date "2020.04.21"]
[Round "2"]
[White "ChessQueen"]
[Black "UCantHandleDenker"]
[Result "1-0"]
[WhiteElo "2764"]
[BlackElo "2521"]
[TimeControl "180+1"]
[EndTime "10:15:22 PDT"]
[Termination "ChessQueen won by resignation"]

1. Nf3 {[%clk 0:03:00.9]} 1... Nf6 {[%clk 0:02:59.1]} 2. g3 {[%clk 0:03:01.2]}
2... g6 {[%clk 0:02:58.6]} 3. Bg2 {[%clk 0:03:01.8]} 3... Bg7 {[%clk 0:02:59.2]}
4. O-O {[%clk 0:03:02.4]} 4... O-O {[%clk 0:02:59.7]} 5. d4 {[%clk 0:03:03]}
5... c5 {[%clk 0:02:59.2]} 6. dxc5 {[%clk 0:02:58.8]} 6... Na6 {[%clk
0:02:58.5]} 7. Be3 {[%clk 0:02:56]} 7... Qc7 {[%clk 0:02:47.2]} 8. Nc3 {[%clk
0:02:41]} 8... Ng4 {[%clk 0:02:10.5]} 9. Bd4 {[%clk 0:02:34.4]} 9... e5 {[%clk
0:02:08.1]} 10. Nd5 {[%clk 0:02:34.1]} 10... Qd8 {[%clk 0:02:07.8]} 11. Bc3
{[%clk 0:02:30.6]} 11... e4 {[%clk 0:01:57.3]} 12. Bxg7 {[%clk 0:02:06.7]} 12...
exf3 {[%clk 0:01:38.3]} 13. exf3 {[%clk 0:02:06.5]} 13... Kxg7 {[%clk
0:01:32.1]} 14. fxg4 {[%clk 0:02:06.3]} 14... d6 {[%clk 0:01:27.5]} 15. Qd4+
{[%clk 0:02:02.6]} 15... f6 {[%clk 0:01:20.9]} 16. cxd6 {[%clk 0:02:02.1]} 16...
Qxd6 {[%clk 0:01:16.3]} 17. g5 {[%clk 0:02:01.8]} 17... Be6 {[%clk 0:01:04.2]}
18. gxf6+ {[%clk 0:01:59.9]} 18... Kf7 {[%clk 0:01:04.1]} 19. Rad1 {[%clk
0:01:49.6]} 19... Rfd8 {[%clk 0:01:00.6]} 20. Qh4 {[%clk 0:01:46.8]} 20... h5
{[%clk 0:00:59]} 21. Qg5 {[%clk 0:01:41]} 21... Qf8 {[%clk 0:00:46.4]} 22. Nf4
{[%clk 0:01:36.1]} 1-0

[Event "*** Titled Tuesday Blitz"]
[Site "Chess.com"]
[Date "2020.04.21"]
[Round "2"]
[White "CzechmVIII"]
[Black "arctic_t00"]
[Result "0-1"]
[WhiteElo "2226"]
[BlackElo "2460"]
[TimeControl "180+1"]
[EndTime "10:15:26 PDT"]
[Termination "arctic_t00 won by resignation"]

1. e4 {[%clk 0:03:00.9]} 1... e6 {[%clk 0:03:00.2]} 2. d4 {[%clk 0:03:00]} 2...
d5 {[%clk 0:03:00.8]} 3. Nc3 {[%clk 0:03:00.1]} 3... Nf6 {[%clk 0:03:00.7]} 4.
Bg5 {[%clk 0:02:59.4]} 4... Bb4 {[%clk 0:03:00]} 5. e5 {[%clk 0:02:58.7]} 5...
h6 {[%clk 0:02:59.8]} 6. Bc1 {[%clk 0:02:58.7]} 6... Nfd7 {[%clk 0:02:58]} 7.
Qg4 {[%clk 0:02:57.9]} 7... Bf8 {[%clk 0:02:54.5]} 8. f4 {[%clk 0:02:49.8]} 8...
a6 {[%clk 0:02:47.5]} 9. Bd3 {[%clk 0:02:45]} 9... c5 {[%clk 0:02:47.4]} 10.
dxc5 {[%clk 0:02:45.3]} 10... Nc6 {[%clk 0:02:45.9]} 11. Qe2 {[%clk 0:02:33.3]}
11... Nxc5 {[%clk 0:02:42.8]} 12. Nf3 {[%clk 0:02:32.9]} 12... Be7 {[%clk
0:02:40.8]} 13. O-O {[%clk 0:02:28.3]} 13... b5 {[%clk 0:02:41.1]} 14. f5 {[%clk
0:02:15.7]} 14... exf5 {[%clk 0:02:34.2]} 15. Qf2 {[%clk 0:01:39]} 15... Ne4
{[%clk 0:02:16.3]} 16. Bxe4 {[%clk 0:01:31.8]} 16... dxe4 {[%clk 0:02:14]} 17.
Ne1 {[%clk 0:01:23.1]} 17... O-O {[%clk 0:01:54.4]} 18. Be3 {[%clk 0:01:22.2]}
18... Be6 {[%clk 0:01:50.2]} 19. Bb6 {[%clk 0:01:12.8]} 19... Qb8 {[%clk
0:01:46.9]} 20. Rd1 {[%clk 0:01:07.1]} 20... Nxe5 {[%clk 0:01:39.7]} 21. Nd5
{[%clk 0:01:01.2]} 21... Bxd5 {[%clk 0:01:36]} 22. Rxd5 {[%clk 0:01:01.4]} 22...
Ng4 {[%clk 0:01:35.2]} 0-1

[Event "*** Titled Tuesday Blitz"]
[Site "Chess.com"]
[Date "2020.04.21"]
[Round "2"]
[White "Macron20hTF1"]
[Black "Kaponov"]
[Result "1-0"]
[WhiteElo "2401"]
[BlackElo "2112"]
[TimeControl "180+1"]
[EndTime "10:15:30 PDT"]
[Termination "Macron20hTF1 won on time"]

1. e4 {[%clk 0:03:00.9]} 1... e5 {[%clk 0:02:58.5]} 2. Nf3 {[%clk 0:02:59.7]}
2... Nc6 {[%clk 0:02:58.5]} 3. Bb5 {[%clk 0:02:59.8]} 3... a6 {[%clk 0:02:55.8]}
4. Ba4 {[%clk 0:02:59.9]} 4... Nf6 {[%clk 0:02:55.7]} 5. O-O {[%clk 0:03:00.6]}
5... Be7 {[%clk 0:02:55.4]} 6. Re1 {[%clk 0:03:00.7]} 6... b5 {[%clk 0:02:55.3]}
7. Bb3 {[%clk 0:03:00.9]} 7... O-O {[%clk 0:02:55.2]} 8. c3 {[%clk 0:03:01.5]}
8... d6 {[%clk 0:02:54.6]} 9. h3 {[%clk 0:03:01]} 9... Nb8 {[%clk 0:02:46.8]}
10. d4 {[%clk 0:03:01.1]} 10... Nbd7 {[%clk 0:02:45.2]} 11. Nbd2 {[%clk
0:03:01.5]} 11... Bb7 {[%clk 0:02:43.2]} 12. a4 {[%clk 0:03:01.4]} 12... c6
{[%clk 0:02:17.6]} 13. Nf1 {[%clk 0:02:59.4]} 13... Re8 {[%clk 0:02:12.8]} 14.
Ng3 {[%clk 0:02:59.8]} 14... g6 {[%clk 0:02:12.3]} 15. Nh2 {[%clk 0:02:56.8]}
15... Bf8 {[%clk 0:02:00.8]} 16. Qf3 {[%clk 0:02:56.3]} 16... Bg7 {[%clk
0:01:57.8]} 17. Ng4 {[%clk 0:02:50.5]} 17... Qe7 {[%clk 0:01:46.8]} 18. Bg5
{[%clk 0:02:41.7]} 18... Rf8 {[%clk 0:01:29.7]} 19. Rad1 {[%clk 0:02:35.3]}
19... h5 {[%clk 0:01:22.6]} 20. dxe5 {[%clk 0:02:30.6]} 20... hxg4 {[%clk
0:00:47.6]} 21. exf6 {[%clk 0:02:30.5]} 21... Bxf6 {[%clk 0:00:30.7]} 22. Bxf6
{[%clk 0:02:28.7]} 22... Qxf6 {[%clk 0:00:30]} 23. Qxf6 {[%clk 0:02:27.9]} 23...
Nxf6 {[%clk 0:00:30]} 24. Rxd6 {[%clk 0:02:28.6]} 24... Kg7 {[%clk 0:00:26.3]}
25. e5 {[%clk 0:02:27.1]} 25... Nd5 {[%clk 0:00:17.5]} 26. Bxd5 {[%clk
0:02:25.8]} 26... cxd5 {[%clk 0:00:17.6]} 27. e6 {[%clk 0:02:25.4]} 27... fxe6
{[%clk 0:00:15.7]} 28. axb5 {[%clk 0:02:24.6]} 28... axb5 {[%clk 0:00:15.6]} 29.
Rexe6 {[%clk 0:02:24.6]} 29... gxh3 {[%clk 0:00:04.2]} 30. Re7+ {[%clk
0:02:24.7]} 30... Rf7 {[%clk 0:00:04.2]} 31. Rxf7+ {[%clk 0:02:25.1]} 31... Kxf7
{[%clk 0:00:04]} 32. Rd7+ {[%clk 0:02:26]} 32... Ke6 {[%clk 0:00:03.1]} 33. Rxb7
{[%clk 0:02:26.9]} 33... hxg2 {[%clk 0:00:03.7]} 34. Kxg2 {[%clk 0:02:27.1]}
34... Ra5 {[%clk 0:00:03.5]} 35. Ne2 {[%clk 0:02:27.1]} 35... Kd6 {[%clk
0:00:03.4]} 36. Nd4 {[%clk 0:02:28]} 36... Kc5 {[%clk 0:00:02.5]} 37. b4+ {[%clk
0:02:28.4]} 37... Kc4 {[%clk 0:00:02.7]} 38. bxa5 {[%clk 0:02:28.6]} 1-0